[Event "*** SCC Grand Prix: Titled Tuesday Blitz"]
[Site "Chess.com"]
[Date "2020.06.02"]
[Round "3"]
[White "joksijoksi"]
[Black "j2806"]
[Result "1-0"]
[WhiteElo "2335"]
[BlackElo "2115"]
[TimeControl "180+1"]
[EndTime "10:28:43 PDT"]
[Termination "joksijoksi won by checkmate"]

1. d4 {[%clk 0:03:00.9]} 1... Nf6 {[%clk 0:02:59.7]} 2. c4 {[%clk 0:03:01.5]}
2... e6 {[%clk 0:03:00]} 3. Nc3 {[%clk 0:03:02.1]} 3... d5 {[%clk 0:03:00.6]} 4.
Nf3 {[%clk 0:03:01.9]} 4... Be7 {[%clk 0:03:01]} 5. Bg5 {[%clk 0:03:02.4]} 5...
Nbd7 {[%clk 0:02:58.8]} 6. cxd5 {[%clk 0:03:01.9]} 6... exd5 {[%clk 0:02:58.6]}
7. e3 {[%clk 0:03:01.6]} 7... c6 {[%clk 0:02:58.8]} 8. Bd3 {[%clk 0:03:02]} 8...
O-O {[%clk 0:02:54.7]} 9. h3 {[%clk 0:03:00.8]} 9... Re8 {[%clk 0:02:54.3]} 10.
Qc2 {[%clk 0:02:46.8]} 10... Nf8 {[%clk 0:02:51.1]} 11. g4 {[%clk 0:02:47.1]}
11... g6 {[%clk 0:02:47.6]} 12. O-O-O {[%clk 0:02:32.7]} 12... Ne6 {[%clk
0:02:42.6]} 13. Bxf6 {[%clk 0:02:27.1]} 13... Bxf6 {[%clk 0:02:40.8]} 14. h4
{[%clk 0:02:27.7]} 14... h6 {[%clk 0:02:12.3]} 15. g5 {[%clk 0:02:10.1]} 15...
hxg5 {[%clk 0:02:10.8]} 16. h5 {[%clk 0:02:04.2]} 16... g4 {[%clk 0:01:58.3]}
17. Ne5 {[%clk 0:01:38.1]} 17... g5 {[%clk 0:01:42.4]} 18. Nxg4 {[%clk
0:01:16.5]} 18... Bg7 {[%clk 0:01:33.3]} 19. Ne5 {[%clk 0:01:09.8]} 19... Qf6
{[%clk 0:01:25.7]} 20. h6 {[%clk 0:00:48.6]} 20... Bh8 {[%clk 0:01:20.9]} 21.
Rdg1 {[%clk 0:00:36.8]} 21... Kf8 {[%clk 0:01:18.2]} 22. h7 {[%clk 0:00:28.4]}
22... Ke7 {[%clk 0:01:15.4]} 23. Kb1 {[%clk 0:00:21.8]} 23... Bd7 {[%clk
0:01:11.6]} 24. Bf5 {[%clk 0:00:17]} 24... Kd8 {[%clk 0:01:06]} 25. Bxe6 {[%clk
0:00:16.7]} 25... Bxe6 {[%clk 0:01:04.7]} 26. Na4 {[%clk 0:00:17.1]} 26... Kc7
{[%clk 0:01:00.1]} 27. Rc1 {[%clk 0:00:13.1]} 27... Bf5 {[%clk 0:00:58.8]} 28.
Nd3 {[%clk 0:00:10.4]} 28... Qg6 {[%clk 0:00:55.5]} 29. Rhd1 {[%clk 0:00:09.9]}
29... Qxh7 {[%clk 0:00:53.4]} 30. Qc3 {[%clk 0:00:10.3]} 30... Bxd3+ {[%clk
0:00:52.7]} 31. Rxd3 {[%clk 0:00:11.2]} 31... Rac8 {[%clk 0:00:48.3]} 32. Qa5+
{[%clk 0:00:08.8]} 32... Kb8 {[%clk 0:00:46.4]} 33. Rc3 {[%clk 0:00:04.1]} 33...
f5 {[%clk 0:00:43.2]} 34. Nc5 {[%clk 0:00:03.6]} 34... Qc7 {[%clk 0:00:40.5]}
35. Qa4 {[%clk 0:00:02.5]} 35... f4 {[%clk 0:00:39]} 36. Ra3 {[%clk 0:00:02.7]}
36... a5 {[%clk 0:00:36.2]} 37. Rdb3 {[%clk 0:00:02.1]} 37... Ka8 {[%clk
0:00:30.5]} 38. Qxa5+ {[%clk 0:00:01.8]} 38... Qxa5 {[%clk 0:00:29.7]} 39. Rxa5+
{[%clk 0:00:02.7]} 39... Kb8 {[%clk 0:00:29.1]} 40. Rxb7# {[%clk 0:00:03.6]} 1-0

[Event "*** SCC Grand Prix: Titled Tuesday Blitz"]
[Site "Chess.com"]
[Date "2020.06.02"]
[Round "3"]
[White "Olga_Zhuravleva"]
[Black "Moon_stone123"]
[Result "1-0"]
[WhiteElo "2261"]
[BlackElo "2473"]
[TimeControl "180+1"]
[EndTime "10:28:44 PDT"]
[Termination "Olga_Zhuravleva won by checkmate"]

1. e4 {[%clk 0:03:00.4]} 1... c5 {[%clk 0:03:00.1]} 2. Nf3 {[%clk 0:02:59.7]}
2... d6 {[%clk 0:03:00.5]} 3. d4 {[%clk 0:02:59.7]} 3... cxd4 {[%clk 0:03:01.4]}
4. Nxd4 {[%clk 0:03:00.1]} 4... Nf6 {[%clk 0:03:01.5]} 5. Nc3 {[%clk 0:03:00.4]}
5... g6 {[%clk 0:03:02]} 6. Be2 {[%clk 0:03:00.1]} 6... Nc6 {[%clk 0:03:01.2]}
7. O-O {[%clk 0:03:01]} 7... Bg7 {[%clk 0:03:00.2]} 8. Nb3 {[%clk 0:03:01.2]}
8... O-O {[%clk 0:03:00]} 9. Re1 {[%clk 0:03:01.5]} 9... a6 {[%clk 0:02:58]} 10.
Bf1 {[%clk 0:03:00.9]} 10... b5 {[%clk 0:02:56.2]} 11. Bg5 {[%clk 0:03:01.4]}
11... Bb7 {[%clk 0:02:55.8]} 12. Nd5 {[%clk 0:03:01.4]} 12... Nd7 {[%clk
0:02:29]} 13. c3 {[%clk 0:02:59.1]} 13... Re8 {[%clk 0:02:28.3]} 14. Rc1 {[%clk
0:02:56.3]} 14... Nb6 {[%clk 0:02:22.6]} 15. Rc2 {[%clk 0:02:53.9]} 15... Rc8
{[%clk 0:02:15.8]} 16. Kh1 {[%clk 0:02:52.5]} 16... Ne5 {[%clk 0:01:50.5]} 17.
f4 {[%clk 0:02:48.8]} 17... Nec4 {[%clk 0:01:49.6]} 18. Qf3 {[%clk 0:02:38.6]}
18... Nxd5 {[%clk 0:01:28.8]} 19. exd5 {[%clk 0:02:37]} 19... Nb6 {[%clk
0:01:28.9]} 20. Rd2 {[%clk 0:02:29.6]} 20... Qd7 {[%clk 0:01:28.5]} 21. h3
{[%clk 0:01:59.8]} 21... Ba8 {[%clk 0:01:13.4]} 22. Qd1 {[%clk 0:01:42.3]} 22...
Qf5 {[%clk 0:00:58.7]} 23. Bd3 {[%clk 0:01:19.5]} 23... Qd7 {[%clk 0:00:49.2]}
24. Be4 {[%clk 0:01:14.3]} 24... Nc4 {[%clk 0:00:37.4]} 25. Rde2 {[%clk
0:01:12.7]} 25... a5 {[%clk 0:00:37.1]} 26. Bf3 {[%clk 0:01:08.7]} 26... Bf8
{[%clk 0:00:23.9]} 27. Bg4 {[%clk 0:00:59.8]} 27... f5 {[%clk 0:00:24.1]} 28.
Bf3 {[%clk 0:00:59.2]} 28... a4 {[%clk 0:00:24.5]} 29. Nd4 {[%clk 0:00:58.1]}
29... h6 {[%clk 0:00:23.1]} 30. Bh4 {[%clk 0:00:55.8]} 30... Nb6 {[%clk
0:00:23.1]} 31. Ne6 {[%clk 0:00:54]} 31... Rc4 {[%clk 0:00:18.7]} 32. Qd2 {[%clk
0:00:47.2]} 32... Rcc8 {[%clk 0:00:13.7]} 33. Nxf8 {[%clk 0:00:45.6]} 33... Kxf8
{[%clk 0:00:14.6]} 34. Rxe7 {[%clk 0:00:43.1]} 34... Rxe7 {[%clk 0:00:13.3]} 35.
Rxe7 {[%clk 0:00:43.2]} 35... Qd8 {[%clk 0:00:12.2]} 36. Qd4 {[%clk 0:00:40.2]}
36... Qxe7 {[%clk 0:00:09.8]} 37. Qh8+ {[%clk 0:00:37.5]} 37... Kf7 {[%clk
0:00:09.7]} 38. Qh7+ {[%clk 0:00:38.1]} 38... Kf8 {[%clk 0:00:08.2]} 39. Qxe7+
{[%clk 0:00:38.5]} 39... Kg8 {[%clk 0:00:08.8]} 40. Qe6+ {[%clk 0:00:37.4]}
40... Kg7 {[%clk 0:00:07.9]} 41. Bf6+ {[%clk 0:00:36.3]} 41... Kh7 {[%clk
0:00:07.9]} 42. Qf7# {[%clk 0:00:35.9]} 1-0

[Event "*** SCC Grand Prix: Titled Tuesday Blitz"]
[Site "Chess.com"]
[Date "2020.06.02"]
[Round "3"]
[White "FightingChess"]
[Black "csati17"]
[Result "0-1"]
[WhiteElo "2354"]
[BlackElo "2554"]
[TimeControl "180+1"]
[EndTime "10:28:45 PDT"]
[Termination "csati17 won by resignation"]

1. e4 {[%clk 0:03:00.9]} 1... e6 {[%clk 0:02:58.3]} 2. d4 {[%clk 0:03:01]} 2...
d5 {[%clk 0:02:58.6]} 3. Nd2 {[%clk 0:03:01.7]} 3... Nf6 {[%clk 0:02:58.6]} 4.
e5 {[%clk 0:03:01.8]} 4... Nfd7 {[%clk 0:02:59.2]} 5. Bd3 {[%clk 0:03:02.5]}
5... c5 {[%clk 0:03:00.1]} 6. c3 {[%clk 0:03:03.2]} 6... Nc6 {[%clk 0:03:01]} 7.
Ne2 {[%clk 0:03:03.7]} 7... cxd4 {[%clk 0:03:01.7]} 8. cxd4 {[%clk 0:03:04.6]}
8... f6 {[%clk 0:03:02.5]} 9. exf6 {[%clk 0:03:05.4]} 9... Nxf6 {[%clk
0:03:03.4]} 10. Nf3 {[%clk 0:03:06.1]} 10... Bd6 {[%clk 0:03:04.3]} 11. O-O
{[%clk 0:03:05.3]} 11... Qc7 {[%clk 0:03:04.6]} 12. Bg5 {[%clk 0:03:04]} 12...
O-O {[%clk 0:03:04.1]} 13. Bh4 {[%clk 0:03:04.5]} 13... Bd7 {[%clk 0:02:56.5]}
14. Bg3 {[%clk 0:03:04.4]} 14... a6 {[%clk 0:02:56.9]} 15. Rc1 {[%clk
0:02:54.1]} 15... Bxg3 {[%clk 0:02:56.5]} 16. hxg3 {[%clk 0:02:53.8]} 16... Qd6
{[%clk 0:02:52.5]} 17. Qd2 {[%clk 0:02:37.5]} 17... Rac8 {[%clk 0:02:12.6]} 18.
a3 {[%clk 0:02:33.1]} 18... e5 {[%clk 0:01:51.7]} 19. dxe5 {[%clk 0:02:32.7]}
19... Nxe5 {[%clk 0:01:52.6]} 20. Nxe5 {[%clk 0:02:30.3]} 20... Qxe5 {[%clk
0:01:52.8]} 21. Nd4 {[%clk 0:02:10]} 21... Rxc1 {[%clk 0:01:39.9]} 22. Rxc1
{[%clk 0:02:09.4]} 22... Ng4 {[%clk 0:01:40.2]} 23. Nf3 {[%clk 0:01:26.1]} 23...
Qh5 {[%clk 0:01:17.8]} 24. Qg5 {[%clk 0:01:21.7]} 24... Qxg5 {[%clk 0:01:17.5]}
25. Nxg5 {[%clk 0:01:22.6]} 25... Rxf2 {[%clk 0:00:52.7]} 26. Rc7 {[%clk
0:00:52.4]} 26... h6 {[%clk 0:00:52.8]} 27. Rxd7 {[%clk 0:00:38.1]} 27... hxg5
{[%clk 0:00:52.6]} 28. Rd8+ {[%clk 0:00:30.1]} 28... Kf7 {[%clk 0:00:51.5]} 29.
Rd7+ {[%clk 0:00:14.7]} 29... Kf6 {[%clk 0:00:39.2]} 30. Rxd5 {[%clk 0:00:11.3]}
30... Rxb2 {[%clk 0:00:36.5]} 31. Rf5+ {[%clk 0:00:11.5]} 31... Ke6 {[%clk
0:00:31.2]} 32. Rf1 {[%clk 0:00:12.2]} 32... Ke5 {[%clk 0:00:23.6]} 33. Re1+
{[%clk 0:00:06.2]} 33... Kd6 {[%clk 0:00:17.9]} 34. Be4 {[%clk 0:00:06.4]} 34...
Ne5 {[%clk 0:00:15.7]} 35. Bxb7 {[%clk 0:00:05.5]} 35... Rxb7 {[%clk 0:00:15.1]}
0-1

[Event "*** SCC Grand Prix: Titled Tuesday Blitz"]
[Site "Chess.com"]
[Date "2020.06.02"]
[Round "3"]
[White "Kira170"]
[Black "maciek_92"]
[Result "0-1"]
[WhiteElo "2618"]
[BlackElo "2813"]
[TimeControl "180+1"]
[EndTime "10:28:46 PDT"]
[Termination "maciek_92 won on time"]

1. e4 {[%clk 0:03:00.9]} 1... c5 {[%clk 0:02:59.5]} 2. b3 {[%clk 0:03:00.4]}
2... Nc6 {[%clk 0:02:54.5]} 3. Bb2 {[%clk 0:03:00]} 3... e5 {[%clk 0:02:54.3]}
4. Bc4 {[%clk 0:02:59.3]} 4... d6 {[%clk 0:02:52]} 5. Ne2 {[%clk 0:02:58.2]}
5... g6 {[%clk 0:02:51.7]} 6. O-O {[%clk 0:02:57.2]} 6... Bg7 {[%clk 0:02:52.1]}
7. f4 {[%clk 0:02:52.3]} 7... Nf6 {[%clk 0:02:50.9]} 8. d3 {[%clk 0:02:48.7]}
8... O-O {[%clk 0:02:47.6]} 9. Nbc3 {[%clk 0:02:47.9]} 9... Nd4 {[%clk
0:02:42.2]} 10. a4 {[%clk 0:02:36.6]} 10... Be6 {[%clk 0:01:42.9]} 11. Qd2
{[%clk 0:02:16.3]} 11... Qd7 {[%clk 0:01:32.8]} 12. Nxd4 {[%clk 0:02:00.9]}
12... cxd4 {[%clk 0:01:29.7]} 13. Ne2 {[%clk 0:02:00.1]} 13... Ng4 {[%clk
0:01:17.8]} 14. c3 {[%clk 0:01:54]} 14... Ne3 {[%clk 0:00:55]} 15. cxd4 {[%clk
0:01:44.6]} 15... Nxf1 {[%clk 0:00:51.9]} 16. Rxf1 {[%clk 0:01:45.5]} 16... Bxc4
{[%clk 0:00:45.4]} 17. dxc4 {[%clk 0:01:44.9]} 17... exf4 {[%clk 0:00:39.6]} 18.
Nxf4 {[%clk 0:01:42.5]} 18... Rae8 {[%clk 0:00:38]} 19. Re1 {[%clk 0:00:23.7]}
19... f5 {[%clk 0:00:37.4]} 20. e5 {[%clk 0:00:16.5]} 20... dxe5 {[%clk
0:00:37.1]} 21. Nd5 {[%clk 0:00:16.3]} 21... e4 {[%clk 0:00:28.6]} 22. g3 {[%clk
0:00:13.8]} 22... h6 {[%clk 0:00:26.6]} 23. Kg2 {[%clk 0:00:13.5]} 23... g5
{[%clk 0:00:26.8]} 24. Rf1 {[%clk 0:00:11]} 24... f4 {[%clk 0:00:22]} 25. gxf4
{[%clk 0:00:10.6]} 25... Qg4+ {[%clk 0:00:21.9]} 26. Kh1 {[%clk 0:00:10.6]}
26... gxf4 {[%clk 0:00:22.8]} 27. Qg2 {[%clk 0:00:01.4]} 27... Qxg2+ {[%clk
0:00:20.6]} 28. Kxg2 {[%clk 0:00:02.3]} 28... f3+ {[%clk 0:00:11.2]} 29. Kf2
{[%clk 0:00:02.1]} 29... Rf5 {[%clk 0:00:10.9]} 0-1

[Event "*** SCC Grand Prix: Titled Tuesday Blitz"]
[Site "Chess.com"]
[Date "2020.06.02"]
[Round "3"]
[White "maximnovik"]
[Black "Illingworth"]
[Result "0-1"]
[WhiteElo "2449"]
[BlackElo "2893"]
[TimeControl "180+1"]
[EndTime "10:28:46 PDT"]
[Termination "Illingworth won on time"]

1. d4 {[%clk 0:03:00.9]} 1... d5 {[%clk 0:02:59.8]} 2. c4 {[%clk 0:03:00.1]}
2... c6 {[%clk 0:02:59.8]} 3. Bf4 {[%clk 0:02:59.2]} 3... dxc4 {[%clk
0:02:59.2]} 4. e3 {[%clk 0:02:59.1]} 4... b5 {[%clk 0:02:59.5]} 5. a4 {[%clk
0:02:58.9]} 5... e6 {[%clk 0:02:38.5]} 6. axb5 {[%clk 0:02:17.9]} 6... cxb5
{[%clk 0:02:39.4]} 7. Nc3 {[%clk 0:02:18]} 7... Bb4 {[%clk 0:02:36.2]} 8. Be2
{[%clk 0:02:09.6]} 8... Nf6 {[%clk 0:02:31.2]} 9. Bf3 {[%clk 0:02:09.4]} 9...
Nd5 {[%clk 0:02:29]} 10. Ne2 {[%clk 0:02:05.9]} 10... Bb7 {[%clk 0:02:21.5]} 11.
O-O {[%clk 0:02:05.5]} 11... Nxc3 {[%clk 0:02:18.7]} 12. Nxc3 {[%clk 0:02:04.2]}
12... Qd7 {[%clk 0:02:10.1]} 13. Bxb7 {[%clk 0:01:48.2]} 13... Qxb7 {[%clk
0:02:11]} 14. Qh5 {[%clk 0:01:41.1]} 14... Bxc3 {[%clk 0:01:58.6]} 15. bxc3
{[%clk 0:01:39.1]} 15... O-O {[%clk 0:01:50.8]} 16. Rfb1 {[%clk 0:01:29.2]}
16... a6 {[%clk 0:01:50.6]} 17. f3 {[%clk 0:01:16.1]} 17... Nd7 {[%clk
0:01:45.2]} 18. e4 {[%clk 0:01:15.2]} 18... f5 {[%clk 0:01:44.6]} 19. Bd6 {[%clk
0:01:09.5]} 19... Rf7 {[%clk 0:01:40]} 20. Re1 {[%clk 0:01:05.4]} 20... Nf6
{[%clk 0:01:35.3]} 21. Qh4 {[%clk 0:01:05.2]} 21... Qc6 {[%clk 0:01:21.5]} 22.
Be5 {[%clk 0:01:04.4]} 22... fxe4 {[%clk 0:01:17.9]} 23. fxe4 {[%clk 0:01:03.7]}
23... Raf8 {[%clk 0:01:11.7]} 24. h3 {[%clk 0:01:00.6]} 24... Nd7 {[%clk
0:01:09.2]} 25. Bg3 {[%clk 0:00:59.8]} 25... Rf6 {[%clk 0:01:05.5]} 26. Kh2
{[%clk 0:00:56.7]} 26... Rh6 {[%clk 0:01:04.6]} 27. Qg4 {[%clk 0:00:56.3]} 27...
Rg6 {[%clk 0:01:04.4]} 28. Qe2 {[%clk 0:00:56.1]} 28... e5 {[%clk 0:00:55]} 29.
Rad1 {[%clk 0:00:49.9]} 29... Re8 {[%clk 0:00:53.3]} 30. Qh5 {[%clk 0:00:29]}
30... Nf6 {[%clk 0:00:45.4]} 31. Qf5 {[%clk 0:00:27.7]} 31... exd4 {[%clk
0:00:41.6]} 32. Rxd4 {[%clk 0:00:26.8]} 32... Qe6 {[%clk 0:00:41.1]} 33. Qc5
{[%clk 0:00:21.3]} 33... Nd7 {[%clk 0:00:34.1]} 34. Qa7 {[%clk 0:00:11.9]} 34...
Ne5 {[%clk 0:00:31.3]} 35. Rf1 {[%clk 0:00:08.8]} 35... Nc6 {[%clk 0:00:28.7]}
36. Rd6 {[%clk 0:00:08.8]} 36... Nxa7 {[%clk 0:00:28]} 37. Rxe6 {[%clk
0:00:08.2]} 37... Rgxe6 {[%clk 0:00:28.9]} 0-1

[Event "*** SCC Grand Prix: Titled Tuesday Blitz"]
[Site "Chess.com"]
[Date "2020.06.02"]
[Round "3"]
[White "crossingthestreet"]
[Black "Escanor89"]
[Result "0-1"]
[WhiteElo "2369"]
[BlackElo "2569"]
[TimeControl "180+1"]
[EndTime "10:28:46 PDT"]
[Termination "Escanor89 won by checkmate"]

1. c4 {[%clk 0:03:00.1]} 1... Nf6 {[%clk 0:02:59.4]} 2. Nc3 {[%clk 0:02:59.6]}
2... g6 {[%clk 0:02:59.5]} 3. e4 {[%clk 0:02:59]} 3... d6 {[%clk 0:02:59.3]} 4.
d4 {[%clk 0:02:59]} 4... Bg7 {[%clk 0:02:59.4]} 5. Be2 {[%clk 0:02:59.5]} 5...
O-O {[%clk 0:02:59.1]} 6. Be3 {[%clk 0:03:00]} 6... c6 {[%clk 0:02:50.5]} 7. g4
{[%clk 0:02:58.4]} 7... e5 {[%clk 0:02:39.5]} 8. d5 {[%clk 0:02:58.3]} 8... cxd5
{[%clk 0:02:39.1]} 9. cxd5 {[%clk 0:02:59.2]} 9... Qa5 {[%clk 0:02:26.9]} 10. f3
{[%clk 0:02:52.7]} 10... h5 {[%clk 0:02:13.5]} 11. g5 {[%clk 0:02:51.1]} 11...
Nfd7 {[%clk 0:02:13.1]} 12. h4 {[%clk 0:02:49.7]} 12... Na6 {[%clk 0:02:08.5]}
13. Qd2 {[%clk 0:02:46.1]} 13... Nac5 {[%clk 0:02:05.6]} 14. Rb1 {[%clk
0:02:37.4]} 14... Qd8 {[%clk 0:01:49.1]} 15. b4 {[%clk 0:02:34.3]} 15... Na6
{[%clk 0:01:49]} 16. Nh3 {[%clk 0:02:32.6]} 16... Nc7 {[%clk 0:01:46.2]} 17. Nf2
{[%clk 0:02:29.6]} 17... a6 {[%clk 0:01:43.2]} 18. a4 {[%clk 0:02:22.1]} 18...
Kh7 {[%clk 0:01:39.1]} 19. Nd3 {[%clk 0:02:20.6]} 19... b6 {[%clk 0:01:25.9]}
20. Kf2 {[%clk 0:01:33.9]} 20... a5 {[%clk 0:01:24.4]} 21. Nb5 {[%clk
0:01:27.5]} 21... Nxb5 {[%clk 0:01:20.7]} 22. axb5 {[%clk 0:01:26.9]} 22... f5
{[%clk 0:01:06.8]} 23. gxf6 {[%clk 0:01:26.2]} 23... Bxf6 {[%clk 0:01:06.4]} 24.
Bg5 {[%clk 0:01:26.2]} 24... axb4 {[%clk 0:00:57.4]} 25. Nxb4 {[%clk 0:01:26.1]}
25... Nc5 {[%clk 0:00:55.5]} 26. Qe3 {[%clk 0:01:20.7]} 26... Bxg5 {[%clk
0:00:53.2]} 27. hxg5 {[%clk 0:01:20.6]} 27... Rf4 {[%clk 0:00:52]} 28. Rbg1
{[%clk 0:01:19.5]} 28... Nxe4+ {[%clk 0:00:48.8]} 29. Ke1 {[%clk 0:01:11.5]}
29... Ra1+ {[%clk 0:00:45.3]} 30. Bd1 {[%clk 0:01:11.7]} 30... Nc5 {[%clk
0:00:35.4]} 31. Nc6 {[%clk 0:01:01.6]} 31... Qf8 {[%clk 0:00:32.7]} 32. Qc3
{[%clk 0:01:00.5]} 32... Ra2 {[%clk 0:00:22]} 33. Rxh5+ {[%clk 0:00:34.7]} 33...
gxh5 {[%clk 0:00:20.2]} 34. g6+ {[%clk 0:00:35.6]} 34... Kg7 {[%clk 0:00:15.8]}
35. Nxe5 {[%clk 0:00:26.2]} 35... dxe5 {[%clk 0:00:15.1]} 36. Qxe5+ {[%clk
0:00:27.1]} 36... Qf6 {[%clk 0:00:15.3]} 37. Qxh5 {[%clk 0:00:20.7]} 37... Qc3+
{[%clk 0:00:14.2]} 38. Kf1 {[%clk 0:00:19.1]} 38... Qd3+ {[%clk 0:00:14.2]} 39.
Ke1 {[%clk 0:00:14.2]} 39... Qd2+ {[%clk 0:00:14.3]} 40. Kf1 {[%clk 0:00:15.1]}
40... Qxd1# {[%clk 0:00:14.4]} 0-1

[Event "*** SCC Grand Prix: Titled Tuesday Blitz"]
[Site "Chess.com"]
[Date "2020.06.02"]
[Round "3"]
[White "killer311"]
[Black "aleksandrovaleksei"]
[Result "1-0"]
[WhiteElo "2390"]
[BlackElo "2562"]
[TimeControl "180+1"]
[EndTime "10:28:47 PDT"]
[Termination "killer311 won on time"]

1. d4 {[%clk 0:03:00.9]} 1... Nf6 {[%clk 0:02:59.4]} 2. c4 {[%clk 0:03:00.1]}
2... e6 {[%clk 0:02:59.3]} 3. e3 {[%clk 0:02:59.2]} 3... d5 {[%clk 0:02:57.4]}
4. Nf3 {[%clk 0:02:58.3]} 4... Nbd7 {[%clk 0:02:55.6]} 5. b3 {[%clk 0:02:56.8]}
5... Bb4+ {[%clk 0:02:53.7]} 6. Nbd2 {[%clk 0:02:56.2]} 6... Ne4 {[%clk
0:02:51.6]} 7. Bd3 {[%clk 0:02:55.1]} 7... Ndf6 {[%clk 0:02:43.5]} 8. O-O {[%clk
0:02:53]} 8... b6 {[%clk 0:02:31.8]} 9. Qc2 {[%clk 0:02:52.8]} 9... Nxd2 {[%clk
0:02:08.2]} 10. Bxd2 {[%clk 0:02:50.1]} 10... Bxd2 {[%clk 0:02:08.2]} 11. Nxd2
{[%clk 0:02:41.6]} 11... c6 {[%clk 0:01:49.9]} 12. Rfe1 {[%clk 0:02:36.8]} 12...
O-O {[%clk 0:01:47.9]} 13. cxd5 {[%clk 0:02:32]} 13... cxd5 {[%clk 0:01:44.7]}
14. Qc6 {[%clk 0:02:28.2]} 14... Bd7 {[%clk 0:01:42]} 15. Qd6 {[%clk 0:02:23.1]}
15... Qb8 {[%clk 0:01:39.8]} 16. Qxb8 {[%clk 0:02:19.1]} 16... Raxb8 {[%clk
0:01:39.5]} 17. Rac1 {[%clk 0:02:20]} 17... a5 {[%clk 0:01:32.1]} 18. f3 {[%clk
0:02:17.6]} 18... Rfc8 {[%clk 0:01:30.2]} 19. Kf2 {[%clk 0:02:17.2]} 19... Kf8
{[%clk 0:01:29.8]} 20. Ke2 {[%clk 0:02:16.8]} 20... Ke7 {[%clk 0:01:29.5]} 21.
Nb1 {[%clk 0:02:10.4]} 21... b5 {[%clk 0:01:25.7]} 22. Nc3 {[%clk 0:02:07.3]}
22... b4 {[%clk 0:01:23.9]} 23. Nb1 {[%clk 0:02:01.9]} 23... Ne8 {[%clk
0:01:21.2]} 24. Nd2 {[%clk 0:01:59.9]} 24... Nd6 {[%clk 0:01:19.1]} 25. e4
{[%clk 0:01:59.6]} 25... dxe4 {[%clk 0:01:11.9]} 26. fxe4 {[%clk 0:02:00.5]}
26... Nb5 {[%clk 0:01:07.5]} 27. Bxb5 {[%clk 0:01:59.6]} 27... Bxb5+ {[%clk
0:01:07.2]} 28. Ke3 {[%clk 0:02:00.2]} 28... e5 {[%clk 0:01:04.1]} 29. dxe5
{[%clk 0:01:51.1]} 29... a4 {[%clk 0:00:49.5]} 30. bxa4 {[%clk 0:01:34.9]} 30...
Bxa4 {[%clk 0:00:47.5]} 31. Rxc8 {[%clk 0:01:35.4]} 31... Rxc8 {[%clk 0:00:47]}
32. Rb1 {[%clk 0:01:35.8]} 32... Rc3+ {[%clk 0:00:34.2]} 33. Kd4 {[%clk
0:01:34.6]} 33... Rc2 {[%clk 0:00:29.8]} 34. Nf3 {[%clk 0:01:25.8]} 34... Rxg2
{[%clk 0:00:24.7]} 35. Rxb4 {[%clk 0:01:24.9]} 35... Rxa2 {[%clk 0:00:23.4]} 36.
Rb7+ {[%clk 0:01:24.8]} 36... Bd7 {[%clk 0:00:20.2]} 37. Ng5 {[%clk 0:01:18]}
37... Rxh2 {[%clk 0:00:14]} 38. Nxf7 {[%clk 0:01:15.5]} 38... Rh1 {[%clk
0:00:08.2]} 39. Ng5 {[%clk 0:01:10.6]} 39... h6 {[%clk 0:00:07.7]} 40. Nf3
{[%clk 0:01:07.2]} 40... g5 {[%clk 0:00:06.8]} 41. Ke3 {[%clk 0:00:54.8]} 41...
g4 {[%clk 0:00:05.7]} 42. Nd4 {[%clk 0:00:54.7]} 42... Kd8 {[%clk 0:00:03.9]}
43. e6 {[%clk 0:00:53.9]} 43... Be8 {[%clk 0:00:02.7]} 44. Nf5 {[%clk
0:00:48.2]} 44... Bc6 {[%clk 0:00:02.2]} 45. e7+ {[%clk 0:00:47.1]} 1-0

[Event "*** SCC Grand Prix: Titled Tuesday Blitz"]
[Site "Chess.com"]
[Date "2020.06.02"]
[Round "3"]
[White "pooh2012"]
[Black "tigra"]
[Result "0-1"]
[WhiteElo "2428"]
[BlackElo "2719"]
[TimeControl "180+1"]
[EndTime "10:28:48 PDT"]
[Termination "tigra won by resignation"]

1. e4 {[%clk 0:03:00.9]} 1... c5 {[%clk 0:02:59.3]} 2. Nf3 {[%clk 0:03:00.3]}
2... e6 {[%clk 0:02:59.7]} 3. g3 {[%clk 0:02:59.6]} 3... d6 {[%clk 0:02:56.8]}
4. Bg2 {[%clk 0:02:54.6]} 4... Nf6 {[%clk 0:02:57.4]} 5. d3 {[%clk 0:02:51]}
5... Be7 {[%clk 0:02:57.5]} 6. O-O {[%clk 0:02:50.6]} 6... O-O {[%clk
0:02:57.8]} 7. Qe2 {[%clk 0:02:48.2]} 7... e5 {[%clk 0:02:57.9]} 8. c3 {[%clk
0:02:47.5]} 8... Nc6 {[%clk 0:02:57.8]} 9. a4 {[%clk 0:02:47]} 9... Bg4 {[%clk
0:02:55.5]} 10. h3 {[%clk 0:02:46.7]} 10... Be6 {[%clk 0:02:55.2]} 11. Ng5
{[%clk 0:02:41.6]} 11... Bd7 {[%clk 0:02:53.2]} 12. Nd2 {[%clk 0:02:31.4]} 12...
Ne8 {[%clk 0:02:49.5]} 13. Ngf3 {[%clk 0:02:28.3]} 13... Nc7 {[%clk 0:02:44.2]}
14. a5 {[%clk 0:02:06.7]} 14... Be6 {[%clk 0:02:37.5]} 15. Ne1 {[%clk
0:01:05.4]} 15... Qd7 {[%clk 0:02:33.9]} 16. Kh2 {[%clk 0:01:04.2]} 16... f5
{[%clk 0:02:29.3]} 17. f4 {[%clk 0:00:54.7]} 17... exf4 {[%clk 0:02:27.5]} 18.
gxf4 {[%clk 0:00:55.6]} 18... Rae8 {[%clk 0:02:26.4]} 19. Qd1 {[%clk 0:00:42.4]}
19... fxe4 {[%clk 0:02:18.3]} 20. dxe4 {[%clk 0:00:42.4]} 20... d5 {[%clk
0:02:18.7]} 21. e5 {[%clk 0:00:38.1]} 21... Nd8 {[%clk 0:02:04.8]} 22. Ndf3
{[%clk 0:00:32.6]} 22... Bf5 {[%clk 0:02:02.5]} 23. Nc2 {[%clk 0:00:27.3]} 23...
Be4 {[%clk 0:02:00.2]} 24. Ne3 {[%clk 0:00:27]} 24... Nde6 {[%clk 0:01:32.6]}
25. f5 {[%clk 0:00:16.1]} 25... Bxf5 {[%clk 0:01:32.2]} 26. Nxf5 {[%clk
0:00:07.5]} 26... Rxf5 {[%clk 0:01:33.1]} 27. Be3 {[%clk 0:00:05.4]} 27... Ref8
{[%clk 0:01:31.5]} 28. Qd2 {[%clk 0:00:02.9]} 28... Qb5 {[%clk 0:01:25.2]} 29.
Rad1 {[%clk 0:00:01.3]} 29... Qxa5 {[%clk 0:01:24.5]} 30. Kh1 {[%clk 0:00:01.4]}
30... Qb5 {[%clk 0:01:23.3]} 31. Rf2 {[%clk 0:00:01.9]} 31... b6 {[%clk
0:01:18.4]} 32. Rdf1 {[%clk 0:00:01.5]} 32... Qc4 {[%clk 0:01:10.2]} 33. Kg1
{[%clk 0:00:01.9]} 33... a5 {[%clk 0:01:03.7]} 34. Qe1 {[%clk 0:00:02.2]} 34...
Qd3 {[%clk 0:00:58.9]} 35. Bc1 {[%clk 0:00:02.4]} 35... a4 {[%clk 0:00:52.8]}
36. Be3 {[%clk 0:00:02.6]} 36... h6 {[%clk 0:00:47.4]} 37. Bc1 {[%clk
0:00:02.8]} 37... Qa6 {[%clk 0:00:33.6]} 38. Qe3 {[%clk 0:00:02.8]} 38... Qa8
{[%clk 0:00:31.9]} 39. Nh2 {[%clk 0:00:02.7]} 39... Rxf2 {[%clk 0:00:31.2]} 40.
Rxf2 {[%clk 0:00:03.6]} 40... Bg5 {[%clk 0:00:31.1]} 41. Qe1 {[%clk 0:00:03.3]}
41... Rxf2 {[%clk 0:00:29.6]} 42. Kxf2 {[%clk 0:00:03.6]} 42... Bh4+ {[%clk
0:00:30]} 0-1